[Event "Superbet Blitz Poland 2022"]
[Site "Warsaw"]
[Date "2022.05.23"]
[Round "17.4"]
[White "Rapport, Richard"]
[Black "Anand, Viswanathan"]
[Result "0-1"]
[ECO "C44"]
[WhiteElo "2776"]
[BlackElo "2751"]
[Annotator "TA"]
[PlyCount "107"]
[EventDate "2022.05.22"]
[EventType "tourn"]
[EventCountry "POL"]
[SourceTitle "playchess.com"]
[Source "ChessBase"]
[SourceQuality "1"]
[TimeControl "300+2"]

{[%evp 10,107,0,0,0,0,0,0,0,0,0,0,0,0,10,11,19,14,33,19,48,24,21,3,6,0,14,0,0,0,0,-4,0,-16,-8,-16,-7,0,-5,-44,0,0,0,-6,-8,-16,0,0,0,-42,-42,-47,-50,-146,-146,-503,-503,-503,-503,-489,-173,-167,-173,-151,-75,-187,-184,-177,-189,-158,-56,-93,-39,-64,-8,-8,-8,-8,0,-8,-8,-8,0,-18,-23,-16,-14,-17,-4,-480,-12,-221,-222,-363,-52,-729,-767,-888,-825,-737]} 1. e4 {[%emt 0:00:02]} e5 {[%emt 0:00:01]} 2. Nf3 {[%emt 0:00:01]} Nc6 {[%emt 0:00:00]} 3. d3 {[%emt 0:00:01]} Nf6 {[%emt 0:00:01]} 4. g3 {[%emt 0:00:01]} Bc5 {[%emt 0:00:01]} (4... Be7 5. Bg2 O-O 6. O-O d6 7. h3 Re8 8. c4 h6 9. Nc3 Nh7 10. Nd5 Be6 11. Be3 Bf8 12. Kh2 Ne7 13. d4 Ng6 14. b3 c6 15. Nc3 Nf6 16. Qc2 Bd7 17. Rad1 Qa5 18. Qd2 Qc7 {1-0 (102) Rapport,R (2763)-Anand,V (2751) Baku 2021}) 5. Bg2 {[%emt 0:05:07]} d6 6. O-O {[%emt 0:00:00]} O-O {[%emt 0:00:02] C44: Ponziani Opening and Scotch Gambit.} 7. c3 {[%emt 0:00:00]} a5 {[%emt 0:00:01]} 8. a4 {[%emt 0:00:00]} Re8 {[%emt 0:00:03] The position is equal.} 9. Re1 {[%emt 0:00:00]} h6 {[%emt 0:00:02]} 10. Na3 {[%emt 0:00:00][%cal Bb1a3,Ba3c2,Bc2e3][%mdl 32]} Bd7 {[%emt 0:00:16]} 11. Nc2 {[%emt 0:00:00]} Ba7 {[%emt 0:00:03]} 12. Be3 {[%emt 0:00:00] [#]} Bxe3 $146 {[%emt 0:00:02]} ({Predecessor:} 12... Qc8 13. Bxa7 Rxa7 14. Ne3 Bh3 15. Bh1 Ng4 16. Nd5 Ne7 17. Nxe7+ Rxe7 18. d4 Re8 {½-½ (47) Boskovic,D (2457)-Todorovic,G (2374) Vrnjacka Banja 2021}) 13. Nxe3 {[%emt 0:00:00]} Ne7 {[%emt 0:00:01]} 14. d4 {[%emt 0:00:00]} Ng6 {[%emt 0:00:15]} (14... Nc6 {is more complex.} 15. dxe5 Nxe5 16. Nd4 Nfg4) 15. dxe5 {[%emt 0:00:00]} Nxe5 {[%emt 0:00:03]} 16. Nxe5 {[%emt 0:00:00]} dxe5 {[%emt 0:00:01]} 17. Qb3 {[%emt 0:00:00]} b6 {[%emt 0:00:07]} 18. Rad1 {[%emt 0:00:00]} Qe7 {[%emt 0:00:02]} 19. Qc4 {[%emt 0:00:00]} Be6 {[%emt 0:00:09]} 20. Qc6 {[%emt 0:00:00]} Rad8 {[%emt 0:00:09]} 21. h3 {[%emt 0:00:00]} Rxd1 {[%emt 0:00:30]} 22. Rxd1 {[%emt 0:00:00]} Rd8 {[%emt 0:00:02]} 23. Rxd8+ {[%emt 0:00:00]} Qxd8 {[%emt 0:00:01]} 24. b4 {[%emt 0:00:00]} Bd7 {[%emt 0:00:21]} 25. Qc4 {[%emt 0:00:00]} axb4 {[%emt 0:00:01]} ({Don't play} 25... Bxa4 26. bxa5 Bd7 27. a6 $16) 26. cxb4 {[%emt 0:00:00] Strongly threatening a5.} Bxa4 {[%emt 0:00:02]} 27. b5 {[%emt 0:00:00]} Qd4 $36 {[%emt 0:00:03][%mdl 2048] Threatens to win with ...Qxc4. Black has good play.} 28. Qxc7 {[%emt 0:00:00]} Bxb5 {[%emt 0:00:03][%cal Ba4b5,Bb5c4,Bc4e6][%mdl 32]} 29. Nf5 {[%emt 0:00:00]} Qc5 {[%emt 0:00:25]} 30. Qd8+ {[%emt 0:00:00]} Kh7 {[%emt 0:00:06]} 31. Ne7 {[%emt 0:00:00]} (31. Ne3 $15) 31... Bc4 $1 $17 {[%emt 0:00:56]} 32. h4 $2 {[%emt 0:00:00][%mdl 8192]} (32. Qc8 $17 {is a better chance.}) 32... Be6 $19 {[%emt 0:00:10] White must now prevent ...Qc1+.} 33. Bf3 {[%emt 0:00:00]} b5 {[%emt 0:00:19]} 34. Kg2 {[%emt 0:00:00]} Qd4 $2 {[%emt 0:00:06]} (34... b4 35. g4 Qc1) 35. Qxd4 {[%emt 0:00:26]} exd4 {[%emt 0:00:01][%mdl 4096] Endgame KBN-KBN} 36. e5 {[%emt 0:00:00]} Nd7 {[%emt 0:00:07]} (36... Ng4 $142 $1 {[%cal Rg4e5]} 37. Be4+ Kh8) 37. Be4+ {[%emt 0:00:02]} (37. Nc6 $17 {was the only defense.}) 37... Kh8 $1 {[%emt 0:00:05] ...b4 is the strong threat.} 38. Nc6 {[%emt 0:00:01]} Nc5 {[%emt 0:00:01]} 39. Bf3 {[%emt 0:00:25]} d3 {[%emt 0:00:02]} (39... Bc4 $1 $17 {aiming for ...d3.} 40. Nxd4 b4) 40. Kf1 $15 {[%emt 0:00:02]} Kg8 {[%emt 0:00:07]} (40... g5 $17) 41. Ke1 {[%emt 0:00:02]} Kf8 {[%emt 0:00:11]} (41... g5 $15) 42. Kd2 $11 {[%emt 0:00:02]} Bc4 {[%emt 0:00:03]} 43. Kc3 {[%emt 0:00:07]} Ke8 {[%emt 0:00:07]} 44. Na5 {[%emt 0:00:02]} Na4+ {[%emt 0:00:03]} 45. Kd4 {[%emt 0:00:06]} Nb6 {[%emt 0:00:12]} 46. Kc5 {[%emt 0:00:02]} Nd7+ {[%emt 0:00:05]} 47. Kd4 {[%emt 0:00:01]} Kd8 {[%emt 0:00:01]} 48. Bd1 {[%emt 0:00:04]} Nb6 {[%emt 0:00:09]} 49. Kc5 $2 {[%emt 0:00:01][%mdl 8192] [#]} (49. Nb7+ $11 Kc7 50. Nd6) 49... Kc7 $2 {[%emt 0:00:01]} ({Better is} 49... Na4+ $1 $19 50. Kd4 (50. Bxa4 $2 bxa4 51. Nxc4 a3 $19) 50... Nb2) 50. f4 $2 {[%emt 0:00:01]} (50. Kd4 $1 $11 {and White is okay.}) 50... Be6 $19 {[%emt 0:00:11]} 51. Kd4 {[%emt 0:00:01] [#]} (51. Nb3 $142) 51... Nc4 $2 {[%emt 0:00:03]} ({Black should try} 51... Na4 $1 $19 52. f5 Bxf5) 52. Nb3 {[%emt 0:00:01][%mdl 8192]} (52. Nxc4 $15 bxc4 53. g4) 52... Nb2 {[%emt 0:00:02]} 53. f5 {[%emt 0:00:06]} Bc4 {[%emt 0:00:04]} ({Inferior is} 53... Nxd1 54. fxe6 fxe6 55. Kxd3 $17) 54. Bh5 {[%emt 0:00:06] Weighted Error Value: White=0.62/Black=0.42} 0-1

[Event "Superbet Blitz Poland 2022"]
[Site "Warsaw"]
[Date "2022.05.23"]
[Round "17.5"]
[White "Caruana, Fabiano"]
[Black "So, Wesley"]
[Result "1-0"]
[ECO "D27"]
[WhiteElo "2786"]
[BlackElo "2766"]
[Annotator "TA"]
[PlyCount "159"]
[EventDate "2022.05.22"]
[EventType "tourn"]
[EventCountry "POL"]
[SourceTitle "playchess.com"]
[Source "ChessBase"]
[SourceQuality "1"]
[TimeControl "300+2"]

{[%evp 11,159,18,20,25,29,21,17,-6,12,6,35,14,25,36,30,0,0,0,1,0,0,0,0,-16,-6,-12,0,-3,-8,-5,-4,-4,-5,-12,-7,-16,-7,-20,-22,-15,0,-12,0,0,0,0,0,0,44,51,44,50,51,49,108,108,108,108,108,108,108,108,108,108,108,108,108,111,112,114,114,107,115,96,115,83,135,141,142,142,139,141,140,96,96,83,83,83,83,83,83,83,83,83,83,83,507,88,485,77,77,0,443,77,77,8,73,73,81,8,8,8,8,8,8,8,8,0,8,8,8,8,8,0,8,8,8,8,8,8,8,8,8,8,8,8,8,8,8,8,8,8,8,8,11,11,29996,29997,29997,29998]} 1. d4 {[%emt 0:00:01]} d5 {[%emt 0:00:02]} 2. c4 {[%emt 0:00:04]} dxc4 {[%emt 0:00:01]} 3. Nf3 {[%emt 0:00:01]} Nf6 {[%emt 0:00:02]} 4. e3 {[%emt 0:00:01]} e6 {[%emt 0:00:01]} 5. Bxc4 {[%emt 0:00:02]} a6 {[%emt 0:00:00]} 6. O-O {[%emt 0:00:02]} c5 {[%emt 0:00:01]} 7. Be2 {[%emt 0:00:01] D27: Queen's Gambit Accepted: Classical main line: 7 e4!? and 7 a4.} cxd4 {[%emt 0:00:11]} 8. Nxd4 {[%emt 0:00:01]} Be7 {[%emt 0:00:02]} 9. Nd2 {[%emt 0:00:06] The position is equal.} O-O {[%emt 0:00:05]} 10. b3 {[%emt 0:00:01]} b5 {[%emt 0:00:07]} 11. Bb2 {[%emt 0:00:31]} Bb7 {[%emt 0:00:01]} 12. Rc1 {[%emt 0:00:13] 12.a4 is the hot move.} Qd7 {[%emt 0:00:01]} 13. Bf3 {[%emt 0:00:09] Inhibits Nc6.} Ra7 {[%emt 0:00:06]} 14. Qe2 {[%emt 0:00:17]} Bxf3 {[%emt 0:00:02]} 15. N2xf3 {[%emt 0:00:01]} Rc8 {[%emt 0:00:03]} 16. Ne5 {[%emt 0:00:05]} Qe8 {[%emt 0:00:02] [#]} 17. a4 $146 {[%emt 0:00:18]} ({Predecessor:} 17. Rxc8 Qxc8 18. Rc1 Rc7 19. Rxc7 Qxc7 20. Nd3 Qa5 21. Ba1 Qc7 22. Qc2 Qxc2 23. Nxc2 {½-½ (45) Ding,L (2805)-Nakamura,H (2754) Zagreb 2019}) 17... bxa4 {[%emt 0:00:08]} 18. bxa4 {[%emt 0:00:02]} Rac7 {[%emt 0:00:03]} 19. Rxc7 {[%emt 0:00:05]} Rxc7 {[%emt 0:00:01]} 20. Ra1 {[%emt 0:00:12]} Qc8 {[%emt 0:00:15]} 21. h3 {[%emt 0:00:11]} Nbd7 {[%emt 0:00:16]} 22. Nxd7 {[%emt 0:00:02]} Nxd7 {[%emt 0:00:01]} 23. a5 {[%emt 0:00:05]} Bf6 {[%emt 0:00:10]} 24. Ba3 {[%emt 0:00:17]} Bxd4 {[%emt 0:00:28]} 25. exd4 {[%emt 0:00:01]} Rc3 {[%emt 0:00:02][%cal Oc3a3]} 26. Bd6 {[%emt 0:00:36]} Rc1+ {[%emt 0:00:09]} 27. Rxc1 {[%emt 0:00:01]} Qxc1+ $11 {[%emt 0:00:01][%mdl 4096] Endgame KQB-KQN} 28. Kh2 {[%emt 0:00:01]} Qc6 {[%emt 0:00:04]} 29. Bg3 {[%emt 0:00:01][%cal Od4d5] d5! is the strong threat.} h6 {[%emt 0:00:11]} 30. d5 {[%emt 0:00:07]} exd5 {[%emt 0:00:06]} 31. Qe8+ {[%emt 0:00:01]} Kh7 {[%emt 0:00:01]} 32. Qxf7 {[%emt 0:00:01]} d4 {[%emt 0:00:14]} (32... Nf6 $14) 33. Qf5+ $16 {[%emt 0:00:02]} Kg8 {[%emt 0:00:02]} 34. Qd3 {[%emt 0:00:08]} Qd5 {[%emt 0:00:21]} 35. Qxa6 {[%emt 0:00:21]} d3 {[%emt 0:00:01]} 36. Qc8+ {[%emt 0:00:06]} Nf8 {[%emt 0:00:24]} 37. a6 {[%emt 0:01:10] Threatens to win with Bf4.} d2 {[%emt 0:00:10]} 38. a7 {[%emt 0:00:04]} d1=Q {[%emt 0:00:07] ( -> ...Qf1)} 39. a8=Q {[%emt 0:00:03]} Qxa8 {[%emt 0:00:01]} 40. Qxa8 {[%emt 0:00:01] KQB-KQN} Qd7 {[%emt 0:00:12]} 41. Qb8 {[%emt 0:00:01] Hoping for Bd6.} Kf7 {[%emt 0:00:02]} 42. Bd6 {[%emt 0:00:05]} Ng6 {[%emt 0:00:09]} 43. f4 {[%emt 0:00:02]} Ne7 {[%emt 0:00:04] [#]} (43... Qe6 $142 44. Ba3 Qc4) 44. Qb3+ $1 {[%emt 0:00:05]} Kg6 {[%emt 0:00:08]} 45. Be5 {[%emt 0:00:10]} Nf5 {[%emt 0:00:10] Against Qg3+} 46. Qc2 {[%emt 0:00:07]} Kf7 {[%emt 0:00:05]} 47. g4 {[%emt 0:00:04]} Ne7 {[%emt 0:00:02]} 48. Kg3 {[%emt 0:00:03] And now Qh7 would win.} g6 {[%emt 0:00:07]} 49. Bb2 {[%emt 0:00:10]} Nd5 {[%emt 0:00:16]} 50. Qe4 {[%emt 0:00:02] Black must now prevent Qd4.} Qe6 {[%emt 0:00:02]} 51. Kf3 {[%emt 0:00:07]} h5 {[%emt 0:00:15]} 52. Qd4 {[%emt 0:00:08]} hxg4+ {[%emt 0:00:01]} 53. hxg4 {[%emt 0:00:00]} Ne7 $2 {[%emt 0:00:04][%mdl 8192] [#]} (53... Qc6 $16 {is a better chance.} 54. Qg7+ Ke8) 54. Qg7+ $1 $18 {[%emt 0:00:04]} Ke8 {[%emt 0:00:00][%cal Og6g5]} 55. Qh8+ $2 {[%emt 0:00:01]} (55. Bf6 $18 {is the precise move to win.}) 55... Kf7 $16 {[%emt 0:00:05]} 56. Qg7+ $2 {[%emt 0:00:01][%mdl 8192]} (56. Qe5 $16 Qb3+ 57. Kf2) 56... Ke8 $18 {[%emt 0:00:01]} 57. Bc3 $2 {[%emt 0:00:01]} (57. Bf6 $18) 57... g5 $16 {[%emt 0:00:25]} 58. Qh8+ {[%emt 0:00:03]} ({White should play} 58. fxg5 $16 Qf7+ 59. Kg3) 58... Kf7 {[%emt 0:00:10]} (58... Kd7 $11) 59. f5 {[%emt 0:00:06] White wants to mate with Qg7+.} Qd5+ {[%emt 0:00:06]} 60. Ke3 {[%emt 0:00:01] Dancing on a razor blade. White is much more active.} (60. Kf2 $16 {aiming for Qh5+.} Qa2+ 61. Bb2) 60... Nxf5+ $11 {[%emt 0:00:05]} 61. gxf5 Qxf5 {[%emt 0:00:00]} 62. Qg7+ {[%emt 0:00:08]} Ke6 {[%emt 0:00:03]} 63. Qg8+ {[%emt 0:00:02]} Kd7 {[%emt 0:00:01]} 64. Qg7+ {[%emt 0:00:07]} Ke6 65. Bd4 {[%emt 0:00:00]} g4 {[%emt 0:00:08]} 66. Qg8+ {[%emt 0:00:00]} Kd7 {[%emt 0:00:01]} 67. Qg7+ {[%emt 0:00:02]} Ke6 {[%emt 0:00:00]} 68. Kd2 {[%emt 0:00:01]} Qe4 {[%emt 0:00:06]} 69. Qf6+ {[%emt 0:00:01]} Kd5 {[%emt 0:00:03]} 70. Be3 {[%emt 0:00:01]} Qb4+ {[%emt 0:00:02]} 71. Ke2 {[%emt 0:00:02]} Qe4 {[%emt 0:00:02] Against Qf5+} 72. Qf7+ {[%emt 0:00:01]} Kd6 {[%emt 0:00:04]} 73. Qf8+ {[%emt 0:00:02]} Kd5 {[%emt 0:00:02]} 74. Kd2 {[%emt 0:00:01]} Qf3 {[%emt 0:00:06]} 75. Qa8+ {[%emt 0:00:02]} Ke5 {[%emt 0:00:01]} 76. Qe8+ {[%emt 0:00:02]} Kf5 {[%emt 0:00:01]} 77. Qd7+ {[%emt 0:00:02]} Kg6 {[%emt 0:00:03]} 78. Qe6+ {[%emt 0:00:01]} Kh7 $2 {[%emt 0:00:08][%mdl 8192]} (78... Kg7 $11) 79. Qh6+ {[%emt 0:00:01]} Kg8 {[%emt 0:00:00]} 80. Qg6+ {[%emt 0:00:01] Weighted Error Value: White=0.34/Black=0.22 (precise)} 1-0

[Event "Superbet Blitz Poland 2022"]
[Site "Warsaw"]
[Date "2022.05.23"]
[Round "18.1"]
[White "Aronian, Levon"]
[Black "Caruana, Fabiano"]
[Result "1/2-1/2"]
[ECO "B90"]
[WhiteElo "2765"]
[BlackElo "2786"]
[Annotator "TA"]
[PlyCount "76"]
[EventDate "2022.05.22"]
[EventType "tourn"]
[EventCountry "POL"]
[SourceTitle "playchess.com"]
[Source "ChessBase"]
[SourceQuality "1"]
[TimeControl "300+2"]

{[%evp 20,76,0,17,20,0,26,35,40,31,20,38,25,29,35,33,36,29,22,16,27,12,14,20,32,31,69,69,69,69,69,69,69,69,69,69,107,96,120,117,116,118,116,115,196,0,0,0,89,0,0,0,0,0,0,0,0,0,0]} 1. e4 {[%emt 0:00:01]} c5 {[%emt 0:00:01]} 2. Nf3 {[%emt 0:00:02]} d6 {[%emt 0:00:01]} 3. d4 {[%emt 0:00:02]} cxd4 {[%emt 0:00:01]} 4. Nxd4 {[%emt 0:00:01]} Nf6 {[%emt 0:00:01]} 5. Nc3 {[%emt 0:00:01]} a6 {[%emt 0:00:01]} 6. Be3 {[%emt 0:00:01]} e5 {[%emt 0:00:01]} 7. Nb3 {[%emt 0:00:01]} Be7 {[%emt 0:00:01]} 8. f3 {[%emt 0:00:03]} h5 {[%emt 0:00:02]} 9. Qd2 {[%emt 0:00:09]} Be6 {[%emt 0:00:05]} 10. O-O-O {[%emt 0:00:07]} Nbd7 {[%emt 0:00:02]} 11. Kb1 {[%emt 0:00:02]} Qc7 {[%emt 0:00:05] 11...Rc8 is a critical line. B90: Sicilian Najdorf: Unusual White 6th moves, 6 Be3 Ng4 and 6 Be3 e5.} 12. Nd5 {[%emt 0:00:44]} Nxd5 {[%emt 0:00:02]} (12... Bxd5 $5 13. exd5 Nb6 $11) 13. exd5 {[%emt 0:00:01]} Bf5 {[%emt 0:00:01] White is slightly better.} 14. Bd3 {[%emt 0:00:08]} Bxd3 {[%emt 0:00:02]} 15. Qxd3 {[%emt 0:00:01]} b5 {[%emt 0:00:02]} 16. Bd2 {[%emt 0:00:34]} O-O {[%emt 0:00:17]} 17. Na5 {[%emt 0:00:04]} Rac8 {[%emt 0:00:11] [#]} 18. Rc1 $146 {[%emt 0:00:13]} ({Predecessor:} 18. Nc6 Nb8 19. Ba5 Qb7 20. Nxe7+ Qxe7 21. Rhe1 Qf6 22. Rg1 Nd7 23. g4 hxg4 24. Rxg4 {½-½ (38) Rheinstaedtler,K (2387)-Liewer,M (2446) Remote email 2012}) 18... Nb6 {[%emt 0:00:35]} 19. b3 {[%emt 0:00:02]} Bf6 {[%emt 0:00:27][%cal Oe5e4]} 20. c4 {[%emt 0:00:16]} bxc4 21. Nxc4 {[%emt 0:00:01]} Nxc4 {[%emt 0:00:29]} 22. Rxc4 {[%emt 0:00:01]} Qd7 {[%emt 0:00:31]} 23. Rhc1 {[%emt 0:00:02]} Rxc4 {[%emt 0:00:05]} 24. Rxc4 {[%emt 0:00:01]} ({Much worse is} 24. Qxc4 Qa7 $11) 24... Ra8 {[%emt 0:00:11]} 25. Rc6 {[%emt 0:00:14]} a5 {[%emt 0:00:01]} 26. a4 {[%emt 0:00:07] White is more active.} g6 {[%emt 0:00:11]} 27. Ka2 {[%emt 0:00:06]} Kg7 {[%emt 0:00:03]} 28. Bc3 {[%emt 0:00:21]} h4 {[%emt 0:00:14] [#]} 29. h3 $1 {[%emt 0:00:01]} Bg5 {[%emt 0:01:09]} 30. Qe4 {[%emt 0:00:20] aiming for f4.} Bf6 {[%emt 0:00:09]} 31. Be1 {[%emt 0:00:09]} Qa7 {[%emt 0:00:16]} (31... Bg5 $16) 32. Bxh4 $2 {[%emt 0:00:25]} (32. Rxd6 $18 {Rc6 is the strong threat.} Qd4 33. Qxd4 exd4 34. Rc6) 32... Bxh4 $11 {[%emt 0:00:02]} 33. Qxh4 $18 {[%emt 0:00:01][%mdl 4096] Endgame KQR-KQR} Rb8 {[%emt 0:00:19] [#]} (33... Qg1 $11 {keeps the balance.} 34. Rc2 (34. Rxd6 Qxg2+ 35. Ka3 Qxf3 $15) 34... Rb8) 34. Rxd6 {[%emt 0:00:32]} (34. Qe1 $1 $16) 34... Qe3 $11 {[%emt 0:00:06] The position is equal.} 35. Qf6+ $1 {[%emt 0:00:02]} Kh6 {[%emt 0:00:01]} 36. Qh4+ {[%emt 0:00:00]} Kg7 {[%emt 0:00:01]} 37. Qf6+ $1 {[%emt 0:00:01]} Kh6 {[%emt 0:00:01]} 38. Qh4+ {[%emt 0:00:01]} Kg7 {[%emt 0:00:01] Weighted Error Value: White=0.16 (very precise) /Black=0.17 (very precise)} 1/2-1/2

[Event "Superbet Blitz Poland 2022"]
[Site "Warsaw"]
[Date "2022.05.23"]
[Round "18.2"]
[White "So, Wesley"]
[Black "Rapport, Richard"]
[Result "1-0"]
[ECO "A61"]
[WhiteElo "2766"]
[BlackElo "2776"]
[Annotator "TA"]
[PlyCount "81"]
[EventDate "2022.05.22"]
[EventType "tourn"]
[EventCountry "POL"]
[SourceTitle "playchess.com"]
[Source "ChessBase"]
[SourceQuality "1"]
[TimeControl "300+2"]

{[%evp 18,81,58,31,35,27,40,33,33,0,10,0,25,29,33,39,42,20,22,25,71,68,68,66,74,53,56,59,91,64,64,64,64,61,93,65,65,65,66,68,88,80,88,80,80,49,49,49,80,42,81,49,81,81,200,10,10,10,17,17,32,32,239,239,454,427]} 1. d4 {[%emt 0:00:02]} e6 {[%emt 0:00:01]} 2. c4 {[%emt 0:00:02]} c5 {[%emt 0:00:01]} 3. d5 {[%emt 0:00:17]} exd5 {[%emt 0:00:01]} 4. cxd5 {[%emt 0:00:00]} d6 {[%emt 0:00:01]} 5. Nc3 {[%emt 0:00:01]} g6 {[%emt 0:00:01]} 6. Bf4 {[%emt 0:00:06]} Nf6 {[%emt 0:00:11]} 7. Nf3 {[%emt 0:00:02]} a6 {[%emt 0:00:02]} 8. a4 {[%emt 0:00:01]} Bg7 {[%emt 0:00:01]} 9. e3 {[%emt 0:00:01]} O-O {[%emt 0:00:01]} 10. h3 {[%emt 0:00:05]} Ne8 {[%emt 0:00:03] A61: Modern Benoni: Nf3 without early e4.} 11. Be2 {[%emt 0:00:05]} Nd7 {[%emt 0:00:01][%cal Bb8d7,Bd7e5,Be5f3][%mdl 32]} 12. O-O {[%emt 0:00:02]} Ne5 {[%emt 0:00:01] White is slightly better.} 13. a5 $5 {[%emt 0:00:03][%mdl 4] 13.Bxe5 is the modern continuation. Exploring less charted territory.} Nxf3+ $1 {[%emt 0:00:09]} 14. Bxf3 {[%emt 0:00:02]} Bd7 {[%emt 0:00:13] [#]} 15. Be2 $146 {[%emt 0:00:14]} ({Predecessor:} 15. Qb3 Rb8 16. Qb6 Qxb6 17. axb6 f5 18. Ra5 Rc8 19. Rfa1 Bf6 20. R5a3 Be5 21. Bh6 {1-0 (41) Panchanatham,V (2384)-Sevian,S (2619) Philadelphia 2018}) 15... Rb8 {[%emt 0:00:13]} 16. Qd2 {[%emt 0:00:09]} Qe7 {[%emt 0:00:05]} 17. Na4 {[%emt 0:00:08][%cal Oa4c5]} Bxa4 {[%emt 0:00:22]} 18. Rxa4 {[%emt 0:00:01]} b5 {[%emt 0:00:01]} (18... Nf6 $11) 19. axb6 $1 $16 {[%emt 0:00:02]} Rxb6 {[%emt 0:00:01]} 20. b4 {[%emt 0:00:08]} ({But not} 20. Rxa6 Rxb2 21. Qd1 Be5 $11) 20... cxb4 {[%emt 0:00:17]} 21. Rxb4 {[%emt 0:00:02]} Rxb4 {[%emt 0:00:07]} 22. Qxb4 {[%emt 0:00:01]} Be5 {[%emt 0:00:02]} 23. Bxa6 {[%emt 0:00:35] White is more active.} Nc7 {[%emt 0:00:18]} 24. Qb7 {[%emt 0:00:42]} Bxf4 {[%emt 0:00:02]} 25. exf4 {[%emt 0:00:01] [#] Rc1 is the strong threat.} Qd8 {[%emt 0:00:03]} 26. Rc1 {[%emt 0:00:02]} Nxa6 {[%emt 0:00:04]} 27. Qxa6 $14 {[%emt 0:00:01][%mdl 4096] Endgame KQR-KQR} Qf6 {[%emt 0:00:03]} 28. g3 {[%emt 0:00:03]} Rd8 {[%emt 0:00:22]} 29. Rc8 {[%emt 0:00:19]} Rxc8 {[%emt 0:00:11]} 30. Qxc8+ $16 {[%emt 0:00:01] KQ-KQ} Kg7 {[%emt 0:00:00]} 31. Qc4 {[%emt 0:00:06]} h5 {[%emt 0:00:07]} 32. Qb4 {[%emt 0:00:03]} Kh7 {[%emt 0:00:11]} 33. Qe4 {[%emt 0:00:17]} Kg7 {[%emt 0:00:08]} 34. Kg2 {[%emt 0:00:00]} Kh7 {[%emt 0:00:07]} 35. Qb4 {[%emt 0:00:07]} Qf5 {[%emt 0:00:17]} (35... Qe7 $16 {was called for.}) 36. Qd4 $2 {[%emt 0:00:25] [#]} (36. Qxd6 $18 {Black must now prevent Qe5.} Qe4+ 37. Kh2) 36... Kg8 $11 {[%emt 0:00:07]} 37. Qc4 {[%emt 0:00:15]} Kh7 {[%emt 0:00:06]} 38. Kh2 {[%emt 0:00:05]} Kg8 {[%emt 0:00:11]} 39. Qc6 {[%emt 0:00:02]} Qe4 $2 {[%emt 0:00:26]} ({Black should try} 39... Qf6 $14) 40. Qxd6 $18 {[%emt 0:00:02]} Qd4 $2 {[%emt 0:00:02]} (40... Qf3 {is a better defense.} 41. Qd8+ Kg7) 41. Kg1 {[%emt 0:00:03] Weighted Error Value: White=0.23 (precise) /Black=0.31} 1-0